Cogmind - Beta 9.6 @@@ ROGUE MODE // 2020.05.01 @ 17:19:59 Player: CreepyD Result: Destroyed by S-10 Pest with Light Assault Rifle Performance ------------- Evolutions (0) 0 Regions Visited (2) 400 Robots Destroyed (8) 40 Value Destroyed (209) 209 Prototype IDs (1) 20 Alien Tech Used (0) 0 Bonus (95) 95 TOTAL SCORE: 764 Bonus ------- Follower Combat Kills 95 Cogmind --------- Core Integrity 0/250 Matter 280/300 Energy 148/160 System Corruption 0% Temperature Cool (145) Movement Walking (130) Location -10/Mines Parts ------- > --- POWER (1) -------- Light Nuclear Core > --- PROPULSION (2) --- Aluminum Leg Makeshift Leg > --- UTILITY (2) ------ Experimental Sensor Array Targeting Computer > --- WEAPON (2) ------- Particle Gun Light Cannon > --- INVENTORY (4) ---- Improved Heat Sink Small Storage Unit Sensor Array Peak State ------------ > --- POWER ------------ Light Nuclear Core > --- PROPULSION ------- Aluminum Leg Makeshift Leg > --- UTILITY ---------- Experimental Sensor Array Targeting Computer > --- WEAPON ----------- Particle Gun Light Cannon > --- INVENTORY -------- Improved Heat Sink Small Storage Unit Sensor Array [Rating: 18] Favorites ----------- Power Ion Engine Engine Ion Engine Power Core Light Nuclear Core Propulsion Aluminum Leg Treads Light Treads Leg Aluminum Leg Utility Targeting Computer Device Sensor Array Storage Small Storage Unit Processor Targeting Computer Weapon Particle Gun Energy Gun Particle Gun Energy Cannon Beam Cannon Ballistic Gun Light Assault Rifle Ballistic Cannon Light Cannon Build | -11 -10 -10 ------- Run | Scr Mat Min Slots Evolved . | . . . Power . | . . . Propulsion . | . . . Utility . | . . . Weapon . | . . . Parts Attached 21 | 8 1 12 Power 2 | 1 . 1 Engine 1 | 1 . . Core 1 | . . 1 Reactor . | . . . Propulsion 7 | 4 . 3 Treads 2 | 2 . . Leg 5 | 2 . 3 Wheel . | . . . Hover . | . . . Flight . | . . . Utility 6 | 1 . 5 Device 4 | . . 4 Storage 1 | 1 . . Processor 1 | . . 1 Hackware . | . . . Protection . | . . . Artifact . | . . . Weapon 6 | 2 1 3 Energy Gun 3 | 1 . 2 Energy Cannon 1 | . 1 . Ballistic Gun 1 | 1 . . Ballistic Cannon 1 | . . 1 Launcher . | . . . Special Weapon . | . . . Impact Weapon . | . . . Slashing Weapon . | . . . Piercing Weapon . | . . . Special Melee Weapon . | . . . Unidentified Prototypes 1 | . . 1 Parts Lost 7 | . 4 3 Power 1 | . 1 . Propulsion 2 | . 1 1 Utility . | . . . Weapon 4 | . 2 2 Highest Loss Streak 4 | . 3 4 Average Slot Usage (%) 80 | . 79 80 Engine 3 | . 12 . Core 2 | . . 3 Treads 7 | . 27 . Leg 19 | . . 27 Device 8 | . . 12 Storage 5 | . 14 1 Processor 9 | . . 12 Energy Gun 11 | . 9 11 Energy Cannon 3 | . 2 4 Ballistic Gun 3 | . 13 . Ballistic Cannon 4 | . . 5 Naked Turns . | . . . Heaviest Build 13 | 12 13 12 Greatest Support 40 | 40 40 30 Greatest Overweight (x) 1 | 1 . . Average Overweight (x) . | . . . Largest Inventory Capacity 6 | 6 6 6 Average Capacity 4 | 5 6 4 Most Carried 4 | 4 3 4 Average Carried 1 | . 2 1 Final Capacity 6 | 6 6 4 Final Carried 3 | 2 2 3 Class Distribution -------------------- 100% | Mutant Dominant Class ---------------- Mutant | -10/Materials Mutant | -10/Mines Resources | -11 -10 -10 ----------- Run | Scr Mat Min Matter Collected 406 | 228 . 178 Remotely . | . . . Salvage Created 177 | . 25 152 Parts 8 | . 1 7 Haulers Intercepted . | . . . Recyclers Shooed . | . . . Parts Field Recycled . | . . . Retrieved Matter . | . . . Parts Self-Destructed . | . . . Prevented . | . . . Kills | -11 -10 -10 ------- Run | Scr Mat Min Combat Hostiles Destroyed 8 | . 4 4 Guns 2 | . . 2 Cannons 3 | . 1 2 AOE 3 | . 3 . Classes Destroyed 2 | . 2 . Swarmer 4 | . 3 1 Grunt 4 | . 1 3 Best Kill Streak 3 | . 3 2 Combat Bots Only 3 | . 3 2 Max Kills in Single Turn 3 | . 3 1 Gunslinging . | . . . Exploded 3 | . 3 . Melee . | . . . Uniques/NPCs Destroyed . | . . . Combat | -11 -10 -10 -------- Run | Scr Mat Min Damage Taken 940 | . 725 215 Core 253 | . 213 40 Absorbed by Shields . | . . . Core Remaining (%) 100 | 100 . . Volleys Fired 38 | . 24 14 Largest 2 | . 2 2 Hottest 125 | . 80 125 Shots Fired 56 | . 33 23 Gun 41 | . 32 9 Cannon 15 | . 1 14 Launcher . | . . . Special . | . . . Kinetic 30 | . 24 6 Thermal 26 | . 9 17 Explosive . | . . . Electromagnetic . | . . . Robot Hit Streak 6 | . 5 6 Robot Miss Streak 5 | . 5 3 Penetration Max . | . . . Secondary Targets . | . . . Shots Hit Robots 34 | . 20 14 Core Hits 15 | . 8 7 Critical Hits 1 | . . 1 Critical Kills . | . . . Critical Parts Destroyed 1 | . . 1 Melee Attacks . | . . . Impact . | . . . Slashing . | . . . Piercing . | . . . Sneak Attacks . | . . . Combat Hostiles . | . . . Follow-up Attacks . | . . . Damage Inflicted 1268 | . 1045 223 Guns 281 | . 186 95 Cannons 136 | . 17 119 Explosions 842 | . 842 . Melee . | . . . Ramming 9 | . . 9 Kinetic 156 | . 125 31 Thermal 670 | . 487 183 Explosive 433 | . 433 . Electromagnetic . | . . . Impact . | . . . Slashing . | . . . Piercing . | . . . Highest Corruption . | . . . Average Corruption . | . . . Corruption Purged . | . . . Overload Shots . | . . . Overflow Damage 156 | . 156 . Projectiles . | . . . Explosions 156 | . 156 . Melee . | . . . Knockbacks 1 | . . 1 Impact . | . . . Kinetic 1 | . . 1 Secondary . | . . . Self-Inflicted Damage 64 | . 60 4 Shots 1 | . 1 . Rammed 3 | . . 3 Targets Rammed 3 | . . 3 Kicked . | . . . Crushed . | . . . Highest Temperature 156 | . 126 156 Average Temperature 58 | . 49 67 Received Heat Transfer 360 | . 288 72 Siege Activations . | . . . Robots Corrupted . | . . . Combat Hostiles . | . . . Parts Fried . | . . . Impact Corruptions . | . . . Robots Melted . | . . . Combat Hostiles . | . . . Parts Melted 2 | . . 2 Heat Transferred 929 | . 522 407 Parts Sabotaged . | . . . Parts Stolen . | . . . Parts Stripped . | . . . Power Chain Reactions . | . . . Missiles Intercepted . | . . . Alert | -11 -10 -10 ------- Run | Scr Mat Min Peak Influence 140 | . 121 140 Average Influence 53 | . 41 71 Maximum Alert Level . | . . . Low Security (%) 100 | 100 100 100 Level 1 . | . . . Level 2 . | . . . Level 3 . | . . . Level 4 . | . . . Level 5 . | . . . High Security . | . . . Max Security . | . . . Squads Dispatched . | . . . Investigation . | . . . Extermination . | . . . Reinforcement . | . . . Assault . | . . . Garrison . | . . . Intercept . | . . . Construction Impeded . | . . . Haulers Reinforced . | . . . Stealth | -11 -10 -10 --------- Run | Scr Mat Min Distress Signals . | . . . Communications Jammed . | . . . Distress Signals . | . . . Times Spotted 23 | . 8 15 Peak Tracking Total 6 | . 5 6 Tactical Retreats 4 | . 1 3 Traps | -11 -10 -10 ------- Run | Scr Mat Min Traps Triggered . | . . . Indirectly . | . . . Trap Hack Attempts . | . . . Triggered . | . . . Disarmed . | . . . Reprogrammed . | . . . Reused . | . . . Traps Extracted . | . . . Installed . | . . . Triggered . | . . . Machines | -11 -10 -10 ---------- Run | Scr Mat Min Machines Disabled 2 | . 2 . Max in Single Turn 2 | . 2 . Machines Sabotaged . | . . . Garrisons Compromised . | . . . Overloaded Fab Kills . | . . . Fab Network Shutdowns . | . . . Hacking | -11 -10 -10 --------- Run | Scr Mat Min Machines Accessed 1 | . 1 . Terminals 1 | . 1 . Fabricators . | . . . Repair Stations . | . . . Recycling Units . | . . . Scanalyzers . | . . . Garrison Access . | . . . Total Hacks 7 | . 7 . Successful 2 | . 2 . Failed 5 | . 5 . Catastrophic 2 | . 2 . Database Lockouts . | . . . Manual 5 | . 5 . Terminals 7 | . 7 . Fabricators . | . . . Repair Stations . | . . . Recycling Units . | . . . Scanalyzers . | . . . Garrison Access . | . . . Terminal Hacks 2 | . 2 . Transport Status 1 | . 1 . Zone Layout 1 | . 1 . Fabricator Hacks . | . . . Repair Station Hacks . | . . . Recycling Unit Hacks . | . . . Scanalyzer . | . . . Garrison Access Hacks . | . . . Unauthorized Hacks . | . . . Terminals . | . . . Fabricators . | . . . Repair Stations . | . . . Recycling Units . | . . . Scanalyzers . | . . . Garrison Access . | . . . Data Cores Recovered . | . . . Used . | . . . Hacking Detections 1 | . 1 . Full Trace Events 1 | . 1 . Feedback Events . | . . . Feedback Blocked . | . . . Robot Schematics Acquired . | . . . Robots Built . | . . . Matter . | . . . Time . | . . . Total Robot Build Rating . | . . . Part Schematics Acquired . | . . . Parts Built . | . . . Matter . | . . . Time . | . . . Total Part Build Rating . | . . . Parts Repaired . | . . . Time . | . . . Parts Recycled . | . . . Recycled Matter . | . . . Retrieved Matter . | . . . Retrieved Components . | . . . Parts Scanalyzed . | . . . Part Schematics Acquired . | . . . Parts Damaged . | . . . Bothacking | -11 -10 -10 ------------ Run | Scr Mat Min Used RIF Installer . | . . . Robots Hacked . | . . . Non-combat . | . . . Combat . | . . . Robot Hacks Applied . | . . . Relay Couplers Released . | . . . Robots Rewired . | . . . Allies Hacked . | . . . Hacks Repelled . | . . . Allies | -11 -10 -10 -------- Run | Scr Mat Min Total Allies 2 | . . 2 Largest Group 2 | . . 2 Highest-Rated Group 39 | . . 39 Highest-Rated Ally 31 | . . 31 Total Orders . | . . . Ally Attacks 7 | . . 7 Total Damage 105 | . . 105 Kills 3 | . . 3 Allies Corrupted . | . . . Allies Melted . | . . . Intel | -11 -10 -10 ------- Run | Scr Mat Min Robot Analysis Total . | . . . Derelict Logs Recovered 2 | . . 2 Drone Launches . | . . . Drone Recoveries . | . . . Exploration | -11 -10 -10 ------------- Run | Scr Mat Min Turns Passed 814 | 118 196 500 Spaces Moved 490 | 83 73 334 Core 13 | 13 . . Treads 89 | 16 73 . Legs 388 | 54 . 334 Wheels . | . . . Hover . | . . . Flight . | . . . Fastest Speed 50 | 50 160 120 Average Speed 128 | 119 160 123 Slowest Speed 160 | 160 160 130 Overloaded Moves . | . . . Propulsion Burnouts . | . . . Robots Hopped . | . . . Cave-ins Triggered . | . . . Exploration Rate (%) 38 | 5 28 81 Regions Visited 2 Branch Regions 1 Pre-discovered Areas . | . . . Known Exits Taken . | . . . Unknown Exits Taken 2 | 1 1 . Scrap Searched 2 | . . 2 Spaces Dug . | . . . Terrain Destroyed 9 | . 9 . Melee . | . . . Projectile . | . . . AOE 9 | . 9 . Actions | -11 -10 -10 --------- Run | Scr Mat Min Total 625 | 102 124 399 Wait 54 | 2 26 26 Move 488 | 82 72 334 Hop . | . . . Pick Up 19 | 9 1 9 Fast Attach . | . . . Attach 14 | 6 1 7 Detach . | . . . Swap 7 | 2 . 5 Drop 2 | 1 . 1 Fire 38 | . 24 14 Melee . | . . . Ram . | . . . Kick 3 | . . 3 Crush . | . . . Escape Stasis . | . . . Rewire . | . . . Trap . | . . . Miscellaneous . | . . . Route ------- -11/Scrapyard -10/Materials -10/Mines History --------- Turn | Location | Event 8 | -11/Scrapyard | Discovered new exit (range 16) 119 | -11/Scrapyard | Entered Materials 173 | -10/Materials | Discovered new exit (range 14) 276 | -10/Materials | Core integrity fell below 50% 310 | -10/Materials | Build established: Mutant 314 | -10/Materials | Core integrity fell below 20% 315 | -10/Materials | Entered Mines 348 | -10/Mines | Lost 4 parts (1p2n1w) 554 | -10/Mines | Learned 2 Materials zone layouts 580 | -10/Mines | Found a damaged Exp. Sensor Array with a note attached 583 | -10/Mines | Found Prototype Device 584 | -10/Mines | Identified Exp. Sensor Array 815 | -10/Mines | Destroyed by S-10 Pest with Light Assault Rifle Last Messages --------------- 00616_ Found Lgt. Cannon. 00616_ Found Seismic Analyzer. 00617_ Acquired 3 matter. 00618_ Acquired Lgt. Cannon. 00622_ Acquired 20 matter. 00639_ Acquired Mak. Leg. 00641_ Dropped Aluminum Leg. 00642_ Acquired 10 matter. 00647_ Acquired Imp. Heat Sink. 00649_ Acquired Particle Gun. 00654_ Acquired 20 matter. 00671_ G-47 Trooper knocked back. 00672_ Acquired 4 matter. 00685_ Acquired Lgt. Nuclear Core. 00687_ Acquired 10 matter. 00690_ K-01 Serf collects debris. 00802_ VZ-XM3(g) destroyed. 00802_ K-01 Serf collects debris. 00804_ S-10 Pest destroyed. 00807_ K-01 Serf collects debris. Map ----- +----------------------------------------------------+ | ??????????????????????????????? | | ??????????????????????????????? | | ??????????????????????????????? | | ????????################??????? | | ????????# #??????? | | ????????# #??????? | | ????????# [ #??????? | | ????????# %= = """ #??????? | | ????????# = """ ######## | | ????????# """ | | ????????# ## | | ????????#################?##### | | ????????????????????????#?#???? | | ????????????????????????# #???? | | ????????????????????????# #???? | | ????????????????????????# #???? | | ????????????????????????#?#???? | | ???????????????????????## #???? | | ?????????????????????? ????? | | ????????????????????? """ ????? | | ???####?????????????# """ ??? | | ??## #???????????## """ ???? | | ??# ##?????????# ????? | | ??# ##???????? #?? ????? | | ??# =######### #??#????? | | ??# @% #???????? | | ??#sssss #????????? | | ??# ##k######## ## ##????????? | | ??#??#=#????### #???#?????????? | | ?????# #????# #????#####?#??? | | ?????# #????# ###???# ## #?? | | ????? #????# #????? ??? | | ?????# #????# #????? ??? | | ?????#$#????# #????? #???? | | ?????# #????# #?????# #????? | | ?????? ?????# #????## ##???? | | ?????? ?????# #??### ##### | | ?????? ?????# #?## """ # | | ?????? ?????# #?# """ | | ?????? ?????# ### """ | | ?????? ?????# ## | | ?????? ?????# | | ????????????#### ## | | ???????????????## ### ## | | ????????????????####### ## ## | | ?????????????????????# ## ## | | ?????????????????????# #### #? | | ????????????????????## #?## ## | | ???????????????????## ### # | | ???????????????????# # | +----------------------------------------------------+ Best States ------------- Heat Dissipation 25 Energy Generation 14 Energy Capacity 250 Matter Stores 300 Matter Capacity 300 Sight Range 16 Robot Scan Range 30 Terrain Scan Density 10 Evasion (%) 50 Targeting Accuracy 5 Recoil Reduction 2 Item Schematics ----------------- None Robot Schematics ------------------ None Fabricated ------------ Nothing Alien Tech Used ----------------- None Achievements -------------- None Challenges ------------ None Game ------ Seed PlasmaHelicalArmor Manual? 0 Play Time 00:08:07 Cumulative 34.4 hours Start 2020.05.01 @ 17:12:39 End 2020.05.01 @ 17:19:59 Sessions 1 Manual Loads 0 Difficulty Rogue Special Mode None Game No. 38 Rogue 37 Adventurer 1 Explorer 0 Win Type - Total 0 Types 0/0/0/0/0/0/0 Lore% 21 Gallery% 39 Achievement% 27 Wizard Run 0 Options --------- ASCII 0 Keyboard 0 Movement Numpad Keybinds 0 Fullscreen 0 Font 16/Smallcaps Map View 76x50 Tactical HUD 1 Map Filters NONE Filters NONE Steam 1 RUN: 1983c0c7-b4cf-4315-a4ae-4fdfa7e964bf